bitfinex-derivatives/quotes_ETHF0:USTF0_20260131
["timestamp","ask_amount","ask_price","bid_price","bid_amount"]
[1769886726803,3.322,2411.8,2410.0,3.84307821]
[1769886727005,3.322,2411.8,2410.1,3.72972616]
[1769886727402,3.86156842,2411.7,2410.1,3.72972616]
[1769886727602,3.86531893,2411.7,2409.6,3.72972616]
[1769886728703,3.86531893,2411.7,2409.3,7.22396264]
[1769886728915,3.86156842,2411.4,2408.8,7.22396264]
[1769886729204,3.86156842,2410.7,2408.3,10.9536888]
[1769886729406,3.86156842,2410.5,2408.2,3.72972616]
[1769886729804,8.22072,2410.6,2408.2,3.72972616]
[1769886729805,3.86156842,2411.3,2408.2,3.72972616]
[1769886730004,3.86156842,2411.3,2407.7,10.35145705]
[1769886730005,8.015,2411.2,2408.8,3.72972616]
[1769886730304,3.86156842,2411.1,2409.1,3.72972616]
[1769886730613,3.321,2411.2,2409.4,3.72972616]
[1769886730800,3.321,2411.2,2409.9,3.72972616]
[1769886731003,3.321,2411.2,2410.1,3.72972616]
[1769886731201,0.00375051,2411.7,2410.1,3.72972616]
[1769886731409,0.00375051,2411.7,2410.7,3.72972616]
[1769886731710,3.321,2412.0,2410.8,3.72972616]
[1769886732114,4.18439625,2412.8,2410.9,3.72972616]
[1769886732115,3.321,2412.8,2410.9,3.72972616]
[1769886732409,3.321,2412.8,2411.4,3.72972616]
[1769886732608,3.32561908,2412.8,2411.4,3.72972616]
[1769886732803,3.86156842,2412.7,2410.7,0.00514353]
[1769886733005,0.20765,2411.3,2409.6,10.50534811]
[1769886733212,4.17995294,2411.2,2409.7,0.49321959]
[1769886733512,8.90295294,2411.1,2409.3,4.0495056]
[1769886733712,6.12121388,2411.7,2409.3,4.0495056]
[1769886733713,2.44810339,2411.6,2409.3,4.0495056]
[1769886733909,0.28887222,2411.4,2409.5,4.0495056]
[1769886734105,5.14144403,2411.3,2409.5,4.0495056]
[1769886734306,0.28887222,2411.1,2409.3,0.00393354]
[1769886734508,0.28887222,2410.4,2407.6,3.90506948]
[1769886734707,0.28887222,2409.5,2407.6,0.49321959]
[1769886734905,0.28887222,2409.5,2405.9,0.20812]
[1769886734906,0.28887222,2409.0,2406.6,3.90506948]
[1769886735106,0.28887222,2408.8,2406.6,3.90506948]
[1769886735307,5.1424289,2408.7,2406.7,0.49321959]
[1769886735511,13.1804289,2408.6,2406.7,4.40308523]
[1769886735712,8.038,2408.6,2406.7,4.40308523]
[1769886736113,0.00385309,2408.7,2406.7,4.40308523]
[1769886738618,0.29973172,2408.7,2406.7,4.40308523]
[1769886739012,0.00385309,2408.7,2406.7,4.40308523]
[1769886739318,0.29973172,2408.7,2406.7,4.40308523]
[1769886739917,0.29587863,2408.5,2406.7,4.40308523]
[1769886740119,4.688,2408.4,2406.7,4.40308523]
[1769886740615,8.01,2408.3,2406.7,4.40308523]
[1769886741209,3.323,2408.4,2406.7,4.40308523]
[1769886742123,0.00385309,2408.7,2406.7,3.90986564]
[1769886742313,4.68,2409.9,2406.9,3.91609337]
[1769886742513,0.07226461,2409.7,2406.9,3.91609337]
[1769886742719,0.26682444,2409.5,2407.1,3.91609337]
[1769886742921,0.26682444,2409.3,2407.1,3.91609337]
[1769886743118,0.26682444,2409.1,2407.2,0.49321959]
[1769886743323,0.26682444,2408.8,2406.7,0.00479616]
[1769886743519,0.26682444,2408.6,2406.8,0.49321959]
[1769886743822,0.26682444,2408.4,2406.8,0.49321959]
[1769886744217,0.26682444,2408.4,2406.8,4.41597048]
[1769886744828,0.2535094,2408.3,2406.7,0.00479616]
[1769886745019,0.2535094,2408.3,2406.3,3.92275089]
[1769886745522,0.2535094,2407.7,2404.6,3.92275089]
[1769886746119,0.2535094,2407.7,2404.6,3.9262294]
[1769886746420,0.14867696,2407.5,2404.6,3.9262294]
[1769886746616,0.14867696,2407.3,2404.6,3.9262294]
[1769886746819,0.14867696,2407.1,2404.6,3.9262294]
[1769886747424,0.00532727,2407.3,2404.6,3.9262294]
[1769886747626,4.65432727,2407.3,2404.8,3.97516712]
[1769886747827,4.65432727,2407.3,2405.0,3.97516712]
[1769886748420,0.00532727,2407.3,2405.4,3.97426095]
[1769886748625,0.00532727,2407.3,2405.7,3.97426095]
[1769886749824,3.324,2407.4,2405.7,3.97426095]
[1769886750222,0.13121388,2407.3,2404.6,0.00347851]
[1769886750426,3.86156842,2407.0,2404.6,0.00347851]
[1769886750628,3.86156842,2406.8,2404.6,0.00347851]
[1769886750827,3.324,2406.7,2404.6,0.00347851]
[1769886751023,3.32857006,2407.0,2404.6,0.21170851]
[1769886751528,0.00457006,2407.0,2405.2,0.20818]
[1769886752324,0.20794,2408.0,2404.6,0.00347851]
[1769886752325,4.165,2408.9,2406.1,3.72972616]
[1769886752524,3.325,2409.3,2406.2,0.20809]
[1769886752820,3.86156842,2409.2,2406.3,3.72972616]
[1769886753021,3.86156842,2408.6,2406.3,3.72972616]
[1769886753422,3.86156842,2408.4,2406.3,3.73281007]
[1769886753622,0.5864944,2407.7,2406.3,0.00308391]
[1769886753817,3.86156842,2407.2,2405.3,3.72972616]
[1769886754028,3.86156842,2407.0,2405.3,3.72972616]
[1769886754223,3.86156842,2406.9,2405.3,3.72972616]
[1769886754823,3.86156842,2406.7,2402.8,3.72972616]
[1769886755020,3.86156842,2406.7,2402.5,3.72972616]
[1769886755021,3.86156842,2405.6,2402.5,3.72972616]
[1769886755231,3.325,2405.7,2403.0,3.72972616]
[1769886755828,3.325,2405.7,2403.2,3.72972616]
[1769886756020,3.86625221,2406.9,2403.5,3.72972616]
[1769886756220,3.86625221,2406.9,2403.0,0.00360839]
[1769886756221,3.86156842,2406.7,2403.8,3.72972616]
[1769886756427,4.44806282,2406.7,2403.8,3.72972616]
[1769886756622,3.86156842,2406.5,2403.8,3.72972616]
[1769886756823,3.325,2406.8,2403.8,3.72972616]
[1769886757022,3.75890292,2406.7,2403.8,3.72972616]
[1769886757226,3.75890292,2406.7,2403.8,3.93802616]
[1769886757824,3.75890292,2406.7,2403.9,3.9294971]
[1769886758429,0.00468379,2406.9,2403.9,3.9294971]
[1769886758627,3.76358671,2406.9,2404.3,3.9294971]
[1769886759427,3.75890292,2406.7,2404.3,3.9294971]
[1769886759637,3.75890292,2406.5,2404.3,3.9294971]
[1769886760038,3.75890292,2406.4,2403.1,3.9294971]
[1769886760239,3.96706292,2405.5,2403.1,3.9294971]
[1769886760440,4.34539732,2405.0,2403.0,0.00360839]
[1769886760738,4.35076378,2405.0,2403.0,0.00360839]
[1769886760938,4.5832087,2404.3,2403.0,0.00360839]
[1769886761238,4.5832087,2404.0,2401.9,3.69534056]
[1769886761545,3.9967143,2404.0,2401.9,3.69534056]
[1769886761744,3.9967143,2403.6,2401.9,3.69534056]
[1769886762241,3.9967143,2403.6,2401.9,3.69907496]
[1769886762839,3.326,2404.2,2401.9,3.69907496]
[1769886763239,7.3237143,2405.7,2402.8,3.69534056]
[1769886763446,4.00208076,2405.0,2402.8,3.69534056]
[1769886763642,3.9967143,2404.8,2402.8,3.69534056]
[1769886763844,4.5832087,2404.8,2402.8,3.69534056]
[1769886764035,3.9967143,2404.0,2402.3,3.69534056]
[1769886764240,3.327,2404.0,2402.3,3.69534056]
[1769886764646,3.327,2404.0,2402.5,3.69534056]
[1769886764845,4.00208076,2405.0,2402.5,3.69534056]
[1769886764846,3.327,2404.9,2402.5,3.69534056]
[1769886765046,3.9967143,2404.9,2402.5,3.69534056]
[1769886765947,0.00536646,2405.0,2402.5,3.69534056]
[1769886766342,0.00536646,2405.0,2402.7,3.69534056]
[1769886766550,0.00536646,2405.0,2402.7,3.90373056]
[1769886766948,4.00208076,2405.0,2402.7,3.90373056]
[1769886767247,0.00536646,2405.0,2402.9,3.90372056]
[1769886767850,4.00208076,2405.0,2402.9,3.90372056]
[1769886768049,4.58857516,2405.0,2402.9,3.90372056]
[1769886768550,3.9967143,2404.8,2402.9,3.90372056]
[1769886769546,3.9967143,2404.8,2403.1,0.20835]
[1769886769750,0.00536646,2405.0,2403.5,3.90366056]
[1769886769947,3.9967143,2405.7,2403.8,3.69534056]
[1769886770156,3.328,2406.0,2404.0,3.69534056]
[1769886770548,3.9967143,2404.6,2402.3,3.69534056]
[1769886770850,3.9967143,2404.1,2402.3,3.69534056]
[1769886771045,0.00404012,2404.1,2402.3,3.69894998]
[1769886771250,0.00404012,2404.1,2402.5,3.69534056]
[1769886771441,0.00404012,2404.1,2402.8,3.69534056]
[1769886771645,3.328,2405.0,2403.0,3.90371056]
[1769886771842,7.3247143,2405.0,2403.0,3.90371056]
[1769886772042,3.328,2405.0,2403.2,3.69534056]
[1769886772443,3.9967143,2405.5,2403.2,3.69534056]
[1769886772751,4.00021364,2405.5,2403.2,3.69534056]
[1769886772953,4.00021364,2405.5,2403.5,3.69534056]
[1769886773453,4.58670804,2405.5,2403.5,3.69534056]
[1769886774255,0.5864944,2405.0,2403.5,3.69534056]
[1769886774457,4.00021364,2405.5,2403.5,3.69534056]
[1769886775554,4.58670804,2405.5,2403.4,3.90367056]
[1769886775756,0.5864944,2405.2,2403.4,3.90367056]
[1769886775958,4.5832087,2405.2,2403.4,3.90367056]
[1769886776157,0.5864944,2405.1,2403.4,3.90367056]
[1769886776657,0.5864944,2405.0,2403.4,3.90367056]
[1769886776858,0.5864944,2405.1,2403.4,3.90367056]
[1769886777261,0.5864944,2405.0,2403.4,3.90367056]
[1769886777454,4.5832087,2405.0,2403.4,3.90367056]
[1769886777658,3.9967143,2404.8,2402.9,3.69534056]
[1769886777852,3.9967143,2405.2,2403.1,0.20836]
[1769886778157,3.9967143,2405.2,2403.2,3.69534056]
[1769886778359,0.00349934,2405.5,2403.8,3.69534056]
[1769886778653,0.00349934,2405.5,2403.8,3.90364056]
[1769886778654,4.00021364,2405.5,2403.8,3.90364056]
[1769886778858,0.00349934,2405.5,2403.8,3.90364056]
[1769886779756,0.00349934,2405.5,2404.1,3.69534056]
[1769886779955,3.9967143,2406.4,2404.7,3.69534056]
[1769886780260,3.9967143,2407.3,2404.7,3.69534056]
[1769886780454,3.9967143,2407.1,2405.1,3.69534056]
[1769886780661,3.9967143,2407.8,2405.3,0.20817]
[1769886780853,3.9967143,2407.5,2405.4,3.69534056]
[1769886781060,3.9967143,2407.5,2405.2,0.20817]
[1769886781357,3.9967143,2407.5,2405.5,3.69534056]
[1769886781562,3.9967143,2406.3,2404.5,3.69534056]
[1769886781754,3.9967143,2406.3,2404.4,0.20824]
[1769886781955,4.5832087,2405.7,2404.1,3.69935721]
[1769886782259,3.9967143,2405.1,2404.1,0.00401665]
[1769886782758,0.5864944,2404.2,2403.0,3.90371056]
[1769886783057,1.27146005,2405.5,2403.0,3.90371056]
[1769886783250,0.20817,2405.3,2402.3,3.69534056]
[1769886783452,5.18019213,2405.2,2402.3,3.69534056]
[1769886783655,0.20818,2405.2,2402.3,3.70044593]
[1769886783853,4.97236071,2405.1,2402.3,3.70044593]
[1769886784058,5.18056071,2405.0,2402.3,3.70044593]
[1769886784261,0.2082,2405.0,2402.3,3.70044593]
[1769886784461,4.97405074,2404.9,2402.3,3.70044593]
[1769886784757,3.36447192,2405.4,2402.6,3.69534056]
[1769886784963,3.9967143,2405.2,2402.6,3.69534056]
[1769886785263,3.9967143,2405.0,2402.6,3.90374056]
[1769886786062,3.9967143,2405.0,2402.8,3.69534056]
[1769886787565,5.31660832,2405.5,2402.8,3.69534056]
[1769886787766,4.04514827,2405.5,2403.3,4.05599973]
[1769886787962,4.04514827,2405.5,2403.3,3.84765973]
[1769886788655,4.04514827,2405.5,2403.5,3.84765973]
[1769886789067,0.0041581,2405.7,2403.8,3.84765973]
[1769886789259,0.0041581,2405.7,2404.2,3.84765973]
[1769886789460,0.0041581,2405.7,2404.2,3.85156441]
[1769886791065,0.0041581,2405.7,2404.4,3.84765973]
[1769886791368,4.04930637,2405.7,2404.4,3.84765973]
[1769886791569,4.04930637,2405.7,2404.2,0.00390468]
[1769886791767,4.04514827,2405.5,2404.2,0.00390468]
[1769886793265,4.04514827,2405.5,2404.2,3.85156441]
[1769886793668,3.328,2405.6,2404.2,3.85156441]
[1769886793968,7.37314827,2405.6,2404.2,3.85156441]
[1769886794769,4.04514827,2405.5,2403.4,10.5336249]
[1769886795072,4.04514827,2405.3,2403.2,3.84765973]
[1769886795269,4.04514827,2405.1,2403.2,3.84765973]
[1769886795868,4.04514827,2405.1,2403.2,3.85157878]
[1769886796669,4.04514827,2404.9,2403.2,0.00391905]
[1769886796858,4.04514827,2404.7,2403.2,0.00391905]
[1769886797064,4.04514827,2404.7,2402.3,3.84765973]
[1769886797567,8.50814827,2405.2,2403.2,0.20835]
[1769886797768,8.50814827,2405.2,2403.3,3.84765973]
[1769886797967,8.50814827,2405.2,2403.3,3.851421]
[1769886798573,4.04514827,2405.1,2403.3,3.851421]
[1769886800060,4.04514827,2405.5,2403.3,3.851421]
[1769886800265,0.0041581,2405.7,2403.6,3.84765973]
[1769886800869,4.04930637,2405.7,2403.6,3.84765973]
[1769886801667,4.04930637,2405.7,2403.3,0.00376127]
[1769886801869,4.25744637,2405.7,2403.3,3.851421]
[1769886802874,4.04930637,2405.7,2403.3,4.059761]
[1769886803872,4.04930637,2405.7,2403.5,3.84765973]
[1769886804765,4.04930637,2405.7,2403.5,14.38128463]
[1769886804973,4.04930637,2405.7,2403.6,3.84765973]
[1769886809867,4.04930637,2405.7,2403.8,3.84765973]
[1769886810474,0.0041581,2405.7,2404.1,3.84765973]
[1769886811072,7.37314827,2406.5,2404.4,3.84765973]
[1769886811377,4.04514827,2407.4,2404.8,3.84765973]
[1769886811680,4.04514827,2407.0,2404.8,3.84765973]
[1769886812077,4.04830516,2407.0,2404.8,3.84765973]
[1769886812278,4.43885848,2407.0,2404.8,3.84765973]
[1769886814179,4.43885848,2407.0,2404.6,10.5336249]
[1769886814180,0.00315689,2407.0,2405.7,3.84765973]
[1769886814381,4.04830516,2407.0,2405.7,0.00490567]
[1769886815882,4.04830516,2407.0,2404.8,3.84765973]
[1769886816787,4.04830516,2407.0,2404.8,3.85290995]
[1769886816981,3.98650735,2406.5,2404.8,0.00525022]
[1769886817280,3.98650735,2406.5,2403.7,10.5336249]
[1769886817481,3.98650735,2405.0,2402.7,3.95426339]
[1769886817682,3.98650735,2404.9,2402.7,3.95426339]
[1769886818283,3.98963396,2404.9,2402.9,3.95426339]
[1769886819980,0.00312661,2404.9,2402.9,3.95426339]
[1769886820184,0.00312661,2404.9,2403.1,4.16262339]
[1769886820987,3.97149663,2405.9,2403.7,3.95426339]
[1769886821188,3.328,2406.4,2403.9,3.99302251]
[1769886821189,3.97149663,2406.3,2403.9,3.99302251]
[1769886821380,3.328,2406.4,2404.1,4.20129251]
[1769886821580,3.328,2406.4,2404.2,3.99302251]
[1769886821987,3.33302253,2406.4,2404.2,3.99302251]
[1769886822393,3.33302253,2406.4,2404.2,4.20128251]
[1769886822593,3.33302253,2406.4,2404.4,3.99302251]
[1769886822799,3.97149663,2406.3,2404.4,3.99687369]
[1769886823191,3.97149663,2406.3,2404.4,0.00385118]
[1769886823395,4.17958663,2406.3,2404.4,0.00385118]
[1769886824501,3.97149663,2406.3,2404.4,3.99687369]
[1769886825403,3.97149663,2406.3,2404.4,0.00385118]
[1769886825799,3.97149663,2405.9,2403.3,3.99302251]
[1769886826006,0.20812,2406.0,2403.3,3.99302251]
[1769886826007,3.97149663,2405.7,2403.3,3.99302251]
[1769886826693,3.97149663,2405.7,2403.3,3.99747436]
[1769886826906,3.97149663,2406.3,2404.1,3.99302251]
[1769886827605,3.97149663,2406.3,2404.5,3.99302251]
[1769886828803,0.00502253,2406.4,2404.5,3.99302251]
[1769886829098,2.47348983,2407.8,2404.7,3.99302251]
[1769886829099,3.97149663,2407.7,2404.7,3.99302251]
[1769886829301,3.97149663,2407.7,2405.9,3.99302251]
[1769886830303,0.00436585,2407.7,2405.9,4.2062106]
[1769886831395,3.97586248,2407.7,2405.9,4.2062106]
[1769886833102,0.00436585,2407.7,2406.1,3.99302251]
[1769886833896,3.97149663,2409.7,2407.2,3.99302251]
[1769886834102,3.97149663,2409.7,2407.2,4.20102251]
[1769886834409,4.04375944,2409.7,2407.2,4.20102251]
[1769886834594,3.97149663,2409.5,2407.2,3.99302251]
[1769886834798,3.97149663,2409.3,2407.2,3.99302251]
[1769886836103,3.97149663,2409.3,2406.6,0.20806]
[1769886836104,3.97149663,2409.1,2406.8,3.99302251]
[1769886837306,3.97149663,2408.8,2406.4,3.99302251]
[1769886838395,4.17936663,2408.8,2406.0,3.99302251]
[1769886838600,3.97149663,2408.2,2406.0,3.99302251]
[1769886838808,0.20792,2408.3,2406.0,3.99302251]
[1769886838809,3.97149663,2408.0,2406.0,3.99302251]
[1769886839102,3.97149663,2408.0,2406.0,4.20113251]
[1769886839409,3.325,2408.1,2406.0,4.20113251]
[1769886839704,3.97149663,2408.8,2406.5,3.99302251]
[1769886839903,3.325,2409.4,2407.1,3.99302251]
[1769886840899,3.97149663,2409.3,2406.6,3.99302251]
[1769886841301,3.97149663,2408.9,2406.6,3.99302251]
[1769886841606,3.97149663,2408.4,2406.6,3.99302251]
[1769886842207,3.97149663,2408.2,2406.0,3.99302251]
[1769886842408,3.97149663,2407.8,2405.5,3.99302251]
[1769886842609,3.97149663,2407.2,2405.0,3.99302251]
[1769886842905,3.97149663,2407.0,2404.1,3.99302251]
[1769886843098,3.97149663,2406.8,2404.1,3.99302251]
[1769886843300,3.97149663,2406.8,2404.1,4.20129251]
[1769886843702,3.97149663,2406.8,2404.1,4.20626603]
[1769886843907,3.97149663,2406.8,2404.4,3.99302251]
[1769886844108,0.00356541,2407.8,2405.6,3.99302251]
[1769886844412,3.97506204,2407.8,2405.6,3.99302251]
[1769886844912,3.97506204,2407.8,2405.6,4.20116251]
[1769886845208,3.97506204,2407.8,2405.1,13.8586249]
[1769886845209,0.00356541,2407.8,2405.8,3.99302251]
[1769886845514,3.97506204,2407.8,2405.8,3.99750264]
[1769886845808,3.97149663,2407.4,2405.8,0.00448013]
[1769886846505,3.97149663,2407.4,2405.8,3.99750264]
[1769886846710,3.97506204,2407.8,2405.8,3.99750264]
[1769886847210,0.00356541,2407.8,2406.0,3.92910208]
[1769886847409,0.00356541,2407.8,2406.4,3.92910208]
[1769886847609,3.77171222,2409.3,2406.9,0.20803]
[1769886847814,3.77171222,2409.3,2407.1,3.92910208]
[1769886848711,3.77479919,2409.3,2407.1,3.92910208]
[1769886849513,3.77171222,2409.1,2406.6,3.92910208]
[1769886849817,3.77171222,2408.9,2406.6,3.92910208]
[1769886850511,3.77171222,2408.5,2406.1,3.92910208]
[1769886850712,3.77171222,2408.3,2405.8,0.00448013]
[1769886850911,3.77171222,2408.1,2405.8,0.00448013]
[1769886851508,3.77171222,2408.1,2405.9,3.92910208]
[1769886854414,3.77171222,2407.9,2405.8,0.00448013]
[1769886854613,3.97966222,2407.9,2405.8,0.00448013]
[1769886854915,3.77171222,2409.1,2406.7,3.92910208]
[1769886855114,0.00308697,2409.3,2407.1,3.92910208]
[1769886855709,3.325,2409.5,2407.3,3.92910208]
[1769886856014,3.77171222,2410.6,2408.3,3.92910208]
[1769886856220,3.325,2410.4,2408.7,3.92910208]
[1769886856517,3.77171222,2410.3,2408.9,3.92910208]
[1769886856816,0.00516736,2410.3,2408.9,3.9330477]
[1769886857014,3.324,2411.3,2409.2,3.92910208]
[1769886858014,0.00448547,2411.3,2409.8,3.92910208]
[1769886858218,3.324,2412.1,2410.1,3.92910208]
[1769886858416,3.77171222,2412.5,2410.1,3.92910208]
[1769886858614,37.34299783,2414.3,2408.9,0.00394562]
[1769886858615,3.77171222,2413.0,2410.3,3.92910208]
[1769886858816,3.77171222,2412.8,2410.8,3.92910208]
[1769886859120,3.77596894,2412.8,2410.8,3.93339953]
[1769886859327,3.77596894,2412.8,2410.8,0.00429745]
[1769886860016,3.77171222,2412.2,2409.1,3.92910208]
[1769886860218,3.77171222,2412.0,2409.1,3.92910208]
[1769886860413,3.77171222,2411.8,2409.1,3.92910208]
[1769886860716,3.77171222,2412.4,2408.7,3.92910208]
[1769886861018,3.77171222,2412.7,2410.2,3.92910208]
[1769886861216,0.00425672,2412.8,2410.5,3.92910208]
[1769886861411,3.77596894,2412.8,2410.5,3.93382341]
[1769886861814,3.322,2412.7,2410.5,3.93382341]
[1769886862027,3.77171222,2412.6,2410.5,3.93382341]
[1769886862518,0.00425672,2412.8,2410.5,3.93382341]
[1769886862519,3.77171222,2412.4,2410.5,3.93382341]
[1769886864226,3.322,2412.3,2410.5,3.93382341]
[1769886864425,3.77171222,2412.4,2410.5,3.93382341]
[1769886864827,3.322,2412.3,2410.5,3.93382341]
[1769886865432,3.321,2412.2,2410.5,3.93382341]
[1769886865625,3.77171222,2412.4,2410.5,3.93382341]
[1769886865827,3.321,2412.5,2410.5,3.93382341]
[1769886866027,3.77171222,2412.4,2410.5,3.93382341]
[1769886867130,3.77171222,2412.4,2410.5,0.00472133]
[1769886868027,3.77171222,2411.6,2409.0,3.92910208]
[1769886868231,3.77171222,2411.3,2408.1,3.92910208]
[1769886868426,3.77171222,2411.1,2408.1,4.13700208]
[1769886868624,3.77171222,2410.9,2408.6,3.92910208]
[1769886869028,3.77171222,2410.8,2408.6,3.93375781]
[1769886869226,3.77171222,2413.2,2409.0,3.92910208]
[1769886869431,3.77171222,2413.2,2410.5,0.2077]
[1769886869631,3.77171222,2413.0,2410.6,3.92910208]
[1769886870228,0.00472703,2413.0,2410.8,3.92910208]
[1769886870424,0.00472703,2413.0,2411.6,3.92910208]
[1769886870627,0.00472703,2413.0,2411.8,3.92910208]
[1769886871131,3.77643925,2413.0,2410.6,3.93251464]
[1769886871329,3.77643925,2413.0,2410.6,0.00341256]
[1769886871634,3.77171222,2412.9,2410.6,0.00341256]
[1769886871933,3.77171222,2412.7,2410.6,0.00341256]
[1769886872134,3.77171222,2412.5,2410.6,0.00341256]
[1769886873836,3.77171222,2412.3,2410.6,0.00341256]
[1769886874035,3.77171222,2412.1,2410.6,0.00341256]
[1769886874337,3.32,2412.0,2410.6,0.00341256]
[1769886874531,3.77171222,2411.9,2410.6,0.00341256]
[1769886875131,3.77171222,2411.7,2410.6,0.00341256]
[1769886875433,7.09171222,2411.7,2410.6,0.00341256]
[1769886876631,3.77171222,2414.3,2412.4,3.92910208]
[1769886876929,4.18940781,2414.3,2412.4,3.92910208]
[1769886877135,3.84110816,2413.9,2410.9,0.20766]
[1769886877434,3.84110816,2413.7,2410.9,0.20766]
[1769886877636,3.84491242,2413.7,2410.9,0.2127649]
[1769886878228,7.16391242,2413.7,2410.9,0.0051049]
[1769886878430,7.16010816,2413.6,2410.9,0.0051049]
[1769886878626,3.84110816,2413.5,2411.5,0.20761]
[1769886879226,3.84110816,2413.5,2411.5,3.33340919]
[1769886879636,3.84110816,2413.4,2411.7,3.12579919]
[1769886880637,3.84110816,2413.4,2411.6,0.20761]
[1769886880938,3.84110816,2413.4,2411.2,3.14947821]
[1769886881139,3.73567861,2413.2,2411.2,3.14947821]
[1769886881534,3.73567861,2413.2,2411.1,0.20764]
[1769886881734,3.73567861,2413.0,2411.1,0.20764]
[1769886882136,36.39136166,2415.6,2412.8,4.14974423]
[1769886882434,4.337,2415.5,2412.8,4.14974423]
[1769886882732,0.42471916,2415.7,2413.2,0.20747]
[1769886882937,7.657,2415.6,2413.3,3.94224423]
[1769886883235,0.07207722,2416.1,2413.5,3.94224423]
[1769886883437,0.20719,2416.5,2413.0,0.41957646]
[1769886883438,4.337,2416.0,2413.8,3.94224423]
[1769886883738,0.07205842,2416.8,2414.0,4.14964423]
[1769886884034,7.655,2416.7,2414.2,4.14962423]
[1769886884238,3.73567861,2416.6,2414.2,4.14962423]
[1769886884734,3.73567861,2416.4,2414.0,0.00420172]
[1769886884936,3.80774061,2416.2,2413.4,0.20745]
[1769886885136,11.39067861,2416.1,2413.4,0.20745]
[1769886885338,7.05267861,2416.0,2413.6,0.20743]
[1769886885529,3.73567861,2415.9,2413.6,0.20743]
[1769886885734,3.73567861,2415.7,2413.6,0.20743]
[1769886885934,3.73567861,2415.5,2413.6,0.2112128]
[1769886886134,3.73567861,2415.3,2413.6,0.2112128]
[1769886886335,7.05267861,2415.2,2413.6,0.2112128]
[1769886886638,3.73567861,2415.1,2413.6,0.2112128]
[1769886887038,0.00402298,2415.1,2413.6,3.2070447]
[1769886887239,3.32102298,2415.1,2413.6,3.2070447]
[1769886887437,3.73567861,2415.0,2413.6,0.0037828]
[1769886888644,3.73567861,2414.7,2411.7,3.21956569]
[1769886888836,3.73567861,2414.5,2411.7,3.21956569]
[1769886889034,3.73567861,2414.3,2411.9,3.21955569]
[1769886889240,3.73567861,2414.3,2409.7,14.61573811]
[1769886889440,3.73567861,2413.0,2409.8,3.01197569]
[1769886889643,3.73567861,2412.8,2409.8,3.01525294]
[1769886890035,3.73567861,2412.6,2409.8,3.01525294]
[1769886890235,7.05167861,2412.5,2410.1,2.99472414]
[1769886890442,3.73567861,2412.5,2410.3,3.20244414]
[1769886891749,3.73936339,2413.0,2410.6,3.20241414]
[1769886891944,0.00368478,2413.0,2411.0,2.99472414]
[1769886892149,0.00368478,2413.0,2411.2,3.09489636]
[1769886893849,3.73936339,2413.0,2411.2,3.09489636]
[1769886894045,0.00368478,2413.0,2411.2,3.09489636]
[1769886894242,2.44235082,2415.3,2410.3,3.33721058]
[1769886894243,7.05267861,2413.9,2411.8,3.0634381]
[1769886894642,3.73567861,2413.9,2411.8,3.0634381]
[1769886894845,3.73567861,2414.9,2412.3,3.0634381]
[1769886895043,3.73567861,2414.9,2411.8,0.20759]
[1769886895044,3.317,2414.8,2412.8,3.2709381]
[1769886895245,3.32077596,2414.8,2412.8,3.27607988]
[1769886895445,3.73567861,2414.7,2412.8,3.27607988]
[1769886895645,7.05267861,2414.6,2412.8,3.27607988]
[1769886895850,3.73567861,2414.5,2412.8,3.27607988]
[1769886896049,0.00377596,2414.8,2413.0,3.05614954]
[1769886896248,0.00377596,2414.8,2413.2,3.05614954]
[1769886897352,3.73945457,2414.8,2413.2,3.05614954]
[1769886897549,0.00377596,2414.8,2413.2,3.26361954]
[1769886897753,3.73567861,2417.2,2413.4,3.05237358]
[1769886898052,3.73567861,2417.2,2414.5,3.25972358]
[1769886898253,3.73567861,2417.2,2413.5,6.65321058]
[1769886898254,4.15136778,2417.2,2414.6,3.2424481]
[1769886898748,4.15593616,2417.2,2414.6,3.2473478]
[1769886898954,4.15593616,2417.2,2414.6,0.2122497]
[1769886899155,3.73567861,2416.7,2414.6,0.0048997]
[1769886899955,3.94284861,2416.7,2413.7,0.20742]
[1769886900151,3.73567861,2416.0,2413.2,3.0399978]
[1769886900356,3.73567861,2415.8,2412.8,3.03764164]
[1769886900655,3.73567861,2415.6,2413.8,3.24505164]
[1769886900858,3.73567861,2415.4,2413.8,0.00368295]
[1769886901158,3.73567861,2416.8,2414.8,3.03764164]
[1769886901551,3.73567861,2416.6,2414.2,3.03764164]
[1769886901751,3.73567861,2416.4,2414.2,3.03764164]
[1769886901959,3.73567861,2416.4,2414.3,3.03764164]
[1769886902152,3.74092198,2416.4,2414.3,3.03764164]
[1769886902349,3.74092198,2416.4,2414.5,3.0745473]
[1769886902856,3.74092198,2416.4,2414.1,3.0745473]
[1769886903052,3.74092198,2416.4,2414.1,3.2819373]
[1769886903253,3.73567861,2416.2,2414.3,3.0745473]
[1769886903650,3.73567861,2416.2,2414.6,3.0745473]
[1769886903850,3.73567861,2416.2,2414.6,3.2818973]
[1769886904852,3.73567861,2416.2,2414.1,3.03347598]
[1769886905059,3.73567861,2416.2,2413.8,0.00368295]
[1769886905652,3.73567861,2415.3,2412.7,3.03347598]
[1769886905962,3.73567861,2415.1,2413.0,3.03347598]
[1769886906664,3.73567861,2415.1,2413.0,0.00297232]
[1769886906863,3.73567861,2415.1,2413.0,2.99638474]
[1769886907356,3.85223837,2414.9,2413.1,3.20088242]
[1769886907757,3.315,2414.9,2413.1,0.20747]
[1769886907962,3.85223837,2414.8,2413.1,0.20747]
[1769886908358,3.85223837,2414.6,2413.1,0.20747]
[1769886908567,3.85636342,2414.6,2412.1,10.5336249]
[1769886908763,3.85223837,2414.2,2411.5,0.20761]
[1769886908957,4.05965837,2413.8,2411.2,3.00750583]
[1769886909156,4.28688685,2413.8,2411.2,3.00750583]
[1769886909659,3.85223837,2413.6,2411.6,4.06545242]
[1769886910059,3.85223837,2413.6,2411.9,2.98093566]
[1769886910267,3.85223837,2414.4,2412.2,2.98093566]
[1769886910666,3.85223837,2414.4,2412.1,0.20756]
[1769886911259,3.85223837,2414.3,2412.1,3.18849566]
[1769886911464,3.85223837,2414.3,2412.8,2.98093566]
[1769886911767,0.00412505,2414.6,2413.0,3.18841566]
[1769886911963,0.00412505,2414.6,2411.7,10.7412149]
[1769886911964,0.00412505,2414.6,2413.2,2.98093566]
[1769886912271,3.85636342,2414.6,2412.7,2.97467724]
[1769886912461,3.85636342,2414.6,2412.3,0.20754]
[1769886912462,3.85223837,2414.3,2411.6,1.05794659]
[1769886912660,3.85223837,2414.3,2411.1,3.91846458]
[1769886912661,4.05968837,2413.5,2410.6,0.20769]
[1769886912870,3.85223837,2412.8,2410.1,3.91846458]
[1769886913065,3.85223837,2412.8,2409.2,3.91846458]
[1769886913270,3.85223837,2412.6,2409.2,3.91846458]
[1769886913470,3.85223837,2412.6,2409.2,4.12627458]
[1769886913771,3.85223837,2412.4,2409.2,4.12923961]
[1769886914158,3.85223837,2412.2,2409.4,3.91846458]
[1769886915073,3.85223837,2412.0,2409.4,3.91846458]